bitfinex/quotes_SOLUSD_20250726
["timestamp","ask_amount","ask_price","bid_price","bid_amount"]
[1753541033434,26.53129316,187.22,187.21,0.06]
[1753541033634,68.91580141,187.22,187.21,0.06]
[1753541037127,31.43580141,187.22,187.21,0.06]
[1753541037328,68.91580141,187.22,187.21,0.06]
[1753541039641,37.48,187.22,187.21,0.72]
[1753541041039,5.43580141,187.23,187.21,0.72]
[1753541041220,4.90450825,187.23,187.22,0.66]
[1753541041416,42.38450825,187.23,187.22,0.66]
[1753541041936,37.48,187.23,187.22,0.66]
[1753541042715,37.51,187.24,187.22,0.66]
[1753541043142,37.51,187.24,187.23,5.3410244]
[1753541043437,0.03,187.24,187.23,6.0010244]
[1753541045244,0.03,187.24,187.21,0.06]
[1753541045245,5.62450825,187.24,187.21,0.06]
[1753541045431,4.90450825,187.22,187.21,0.06]
[1753541046220,4.90450825,187.23,187.21,0.72]
[1753541046539,37.46,187.22,187.21,0.72]
[1753541046742,42.36450825,187.23,187.21,0.72]
[1753541046916,4.93450825,187.24,187.22,0.66]
[1753541047118,42.39450825,187.24,187.22,0.66]
[1753541047436,37.46,187.23,187.22,6.00129432]
[1753541047632,37.46,187.23,187.22,5.34129432]
[1753541047836,37.49,187.24,187.22,5.34129432]
[1753541048142,37.49,187.24,187.23,0.66]
[1753541048846,37.49,187.24,187.23,6.0010244]
[1753541049139,0.03,187.24,187.23,6.0010244]
[1753541050633,0.03,187.24,187.23,5.3410244]
[1753541053019,0.03,187.24,187.23,0.66]
[1753541055625,0.03,187.24,187.23,6.0010244]
[1753541057256,0.03,187.24,187.23,5.3410244]
[1753541057444,0.72,187.24,187.22,5.34126639]
[1753541058459,0.72,187.24,187.21,6.06152286]
[1753541058755,4.90450825,187.22,187.21,0.06]
[1753541059053,5.59450825,187.22,187.21,0.06]
[1753541060060,42.36450825,187.23,187.21,0.06]
[1753541061456,42.36450825,187.23,187.21,0.72]
[1753541062555,42.36450825,187.23,187.21,6.0615819]
[1753541063450,42.36450825,187.23,187.21,0.06]
[1753541064253,43.05450825,187.23,187.21,0.06]
[1753541064452,5.59450825,187.23,187.21,0.06]
[1753541064658,0.69,187.23,187.21,0.06]
[1753541064956,37.47,187.24,187.21,0.06]
[1753541064957,43.09450825,187.24,187.21,0.06]
[1753541065159,43.09450825,187.24,187.21,0.73]
[1753541065532,43.09450825,187.24,187.21,6.07152173]
[1753541066854,37.47,187.24,187.21,0.73]
[1753541067360,42.37450825,187.24,187.21,0.73]
[1753541067549,43.09450825,187.24,187.21,0.73]
[1753541069057,5.62450825,187.23,187.21,0.06]
[1753541069359,4.90450825,187.22,187.21,0.06]
[1753541069562,37.44,187.22,187.21,0.06]
[1753541069743,43.06450825,187.22,187.21,0.06]
[1753541070746,38.16,187.22,187.21,0.06]
[1753541071059,37.44,187.22,187.21,0.06]
[1753541071738,3.89036536,187.24,187.21,0.06]
[1753541071937,37.44,187.23,187.21,5.401595]
[1753541072442,37.44,187.23,187.21,6.071595]
[1753541074064,0.03,187.24,187.22,0.67]
[1753541074269,0.03,187.24,187.23,3.14036536]
[1753541074934,0.03,187.24,187.23,3.81036536]
[1753541075338,0.03,187.24,187.23,0.67]
[1753541076170,0.03,187.24,187.23,6.0110244]
[1753541076960,0.03,187.24,187.23,10.91470244]
[1753541085775,0.03,187.24,187.23,48.33470244]
[1753541086573,0.75,187.28,187.23,61.68726346]
[1753541086574,0.03,187.28,187.23,61.68726346]
[1753541086754,0.03,187.28,187.26,4.90367804]
[1753541087566,0.03,187.28,187.26,5.57367804]
[1753541087978,0.03,187.28,187.27,5.33988359]
[1753541089160,0.03,187.28,187.27,6.00988359]
[1753541089360,0.03,187.28,187.27,10.91356163]
[1753541090459,0.03,187.28,187.27,10.24356163]
[1753541093251,0.03,187.28,187.27,5.33988359]
[1753541094676,0.03,187.28,187.27,5.99988359]
[1753541094868,0.03,187.28,187.27,10.90356163]
[1753541098860,0.03,187.28,187.27,9.13643232]
[1753541104583,1e-08,187.28,187.27,113.32111629]
[1753541110886,1e-08,187.29,187.28,19.9212327]
[1753541111184,1e-08,187.29,187.28,57.9612327]
[1753541112295,1e-08,187.29,187.28,63.30083116]
[1753541114095,1e-08,187.29,187.28,150.70083116]
[1753541115275,0.03,187.33,187.31,26.0]
[1753541115512,0.03,187.33,187.32,57.3012327]
[1753541115689,0.03,187.33,187.32,57.9612327]
[1753541116713,0.03,187.33,187.32,54.82468397]
[1753541116879,0.03,187.33,187.32,57.9612327]
[1753541119297,0.03,187.33,187.32,63.29969095]
[1753541120107,0.03,187.33,187.32,150.69969095]
[1753541120320,0.03,187.33,187.32,150.03969095]
[1753541121717,0.03,187.33,187.32,150.69969095]
[1753541121883,0.1,187.35,187.33,16.78468397]
[1753541122087,0.1,187.35,187.34,40.49654873]
[1753541123191,0.1,187.35,187.34,41.15654873]
[1753541123711,0.1,187.35,187.34,46.49443706]
[1753541124292,0.1,187.35,187.34,45.83443706]
[1753541127192,0.1,187.35,187.34,46.55443706]
[1753541128318,0.1,187.35,187.34,45.83443706]
[1753541130837,0.1,187.35,187.34,46.55443706]
[1753541131401,0.1,187.35,187.34,43.41788833]
[1753541131628,0.1,187.35,187.34,46.55443706]
[1753541131807,0.1,187.35,187.34,45.83443706]
[1753541133937,0.03,187.37,187.36,26.0]
[1753541134139,0.03,187.37,187.36,66.47654873]
[1753541135122,0.03,187.37,187.36,154.59654873]
[1753541135330,1e-08,187.37,187.36,154.59654873]
[1753541135904,1e-08,187.37,187.36,159.93386726]
[1753541136231,1e-08,187.37,187.36,176.71855123]
[1753541141840,1e-08,187.37,187.36,139.37855123]
[1753541142035,1e-08,187.37,187.36,176.71855123]
[1753541142446,1e-08,187.37,187.36,173.5820025]
[1753541142625,1e-08,187.37,187.36,176.71855123]
[1753541144731,1e-08,187.37,187.36,175.97855123]
[1753541146062,1e-08,187.37,187.36,176.69855123]
[1753541148016,1e-08,187.41,187.37,16.78468397]
[1753541148246,1e-08,187.41,187.4,19.9212327]
[1753541148547,1e-08,187.41,187.4,57.2412327]
[1753541149431,0.71000001,187.41,187.4,62.57741199]
[1753541150727,0.71000001,187.41,187.4,5.33617929]
[1753541150927,0.71000001,187.41,187.4,42.65617929]
[1753541151854,3.84654874,187.41,187.33,13.34501123]
[1753541152021,3.13654873,187.37,187.34,42.65788833]
[1753541152228,3.84654873,187.36,187.34,42.65788833]
[1753541152553,0.71,187.35,187.34,42.65788833]
[1753541152934,3.84654873,187.35,187.34,42.65788833]
[1753541153361,0.71,187.35,187.34,42.65788833]
[1753541156559,5.60949852,187.35,187.34,42.65788833]
[1753541156764,0.71,187.35,187.34,42.65788833]
[1753541162150,0.67,187.37,187.34,42.65788833]
[1753541162552,0.67,187.36,187.34,56.00260915]
[1753541162759,0.67,187.35,187.34,56.00260915]
[1753541166267,4.89949852,187.38,187.34,56.00260915]
[1753541166577,0.67,187.37,187.34,56.00260915]
[1753541167352,4.89949852,187.38,187.34,56.00260915]
[1753541167567,4.89949852,187.39,187.35,0.69]
[1753541167763,0.67,187.38,187.36,37.3]
[1753541167978,4.89949852,187.39,187.36,37.3]
[1753541168181,0.67,187.37,187.36,37.3]
[1753541168880,0.67,187.38,187.37,5.33703367]
[1753541169968,4.89949852,187.4,187.37,5.33703367]
[1753541170171,0.67,187.4,187.37,5.33703367]
[1753541170476,4.89949853,187.41,187.38,37.3]
[1753541170666,0.67,187.39,187.38,37.3]
[1753541171074,0.67,187.39,187.37,42.63703367]
[1753541171274,0.67,187.38,187.37,42.63703367]
[1753541172983,0.67,187.39,187.37,42.63703367]
[1753541174377,5.56949853,187.41,187.37,43.32703367]
[1753541174578,0.67,187.4,187.37,43.32703367]
[1753541175087,1e-08,187.41,187.38,0.69]
[1753541175280,1e-08,187.41,187.39,37.3]
[1753541175583,1e-08,187.41,187.39,37.99]
[1753541175977,5.56949852,187.4,187.36,5.33726631]
[1753541176170,4.89949852,187.37,187.36,5.33726631]
[1753541176370,5.56949852,187.37,187.36,5.33726631]
[1753541176973,5.56949852,187.37,187.35,5.33760341]
[1753541177275,0.67,187.36,187.35,5.33760341]
[1753541177478,5.56949852,187.36,187.35,5.33760341]
[1753541177683,5.56949852,187.36,187.31,13.34661625]
[1753541177977,0.53129316,187.39,187.32,37.3]
[1753541177978,5.56949852,187.35,187.32,37.3]
[1753541178377,0.67,187.34,187.32,37.3]
[1753541179085,4.89949852,187.35,187.32,42.63845825]
[1753541179282,5.56949852,187.35,187.32,42.63845825]
[1753541179464,0.67,187.35,187.32,43.32845825]
[1753541179665,5.56949852,187.36,187.32,43.32845825]
[1753541179877,0.67,187.36,187.32,43.32845825]
[1753541180072,5.56949852,187.36,187.32,43.32845825]
[1753541180480,5.56949852,187.36,187.32,43.38845825]
[1753541183696,5.56949852,187.36,187.32,42.69845825]
[1753541183993,5.56949852,187.36,187.32,43.38845825]
[1753541185091,0.72,187.35,187.32,43.38845825]
[1753541185469,5.61949852,187.35,187.32,42.69845825]
[1753541185664,0.72,187.34,187.32,5.39845825]
[1753541186888,4.89949852,187.35,187.32,5.39845825]
[1753541187088,0.72,187.35,187.32,0.72]
[1753541187289,0.72,187.35,187.32,38.02]
[1753541187686,5.61949852,187.36,187.32,38.02]
[1753541187990,0.72,187.35,187.33,5.33817327]
[1753541189298,4.89949852,187.36,187.33,5.33817327]
[1753541189598,5.61949852,187.36,187.33,5.33817327]
[1753541190084,5.61949852,187.36,187.33,5.99817327]
[1753541192614,0.72,187.35,187.33,5.33817327]
[1753541192908,5.61949852,187.36,187.33,5.33817327]
[1753541194814,5.61949852,187.36,187.33,5.99817327]
[1753541195100,0.72,187.36,187.33,5.99817327]
[1753541196086,4.89949852,187.38,187.34,0.66]
[1753541196288,26.72,187.39,187.34,0.66]
[1753541196471,7.15039852,187.4,187.34,5.55949852]
[1753541196676,1e-08,187.41,187.37,4.89949852]
[1753541197079,1e-08,187.41,187.38,0.66]
[1753541197582,1e-08,187.41,187.39,0.66]
[1753541198002,1e-08,187.41,187.4,0.66]
[1753541198687,1e-08,187.41,187.4,5.99617929]
[1753541201880,1e-08,187.41,187.4,10.89567781]
[1753541205808,1e-08,187.41,187.4,27.68036178]
[1753541207211,1e-08,187.41,187.4,64.94036178]
[1753541207587,1e-08,187.41,187.4,64.28036178]
[1753541208506,1e-08,187.41,187.4,64.94036178]
[1753541211112,0.1,187.43,187.41,16.78468397]
[1753541211316,1e-08,187.43,187.42,58.94418249]
[1753541211495,1e-08,187.43,187.42,147.00418249]
[1753541212183,1e-08,187.43,187.42,173.00418249]
[1753541213513,1e-08,187.43,187.42,178.33979235]
[1753541223220,1e-08,187.43,187.42,140.41979235]
[1753541223418,1e-08,187.43,187.42,177.65979235]
[1753541223725,1e-08,187.43,187.42,178.35979235]
[1753541230826,1e-08,187.43,187.42,177.65979235]
[1753541231229,0.66000001,187.43,187.42,31.33560986]
[1753541231409,1e-08,187.43,187.42,73.47510838]
[1753541231610,0.66000001,187.43,187.42,73.47510838]
[1753541231824,1e-08,187.43,187.42,73.47510838]
[1753541232522,1e-08,187.43,187.42,90.25979235]
[1753541233138,1e-08,187.43,187.42,90.95979235]
[1753541235329,1e-08,187.43,187.42,178.35979235]
[1753541237806,1e-08,187.45,187.44,42.78468397]
[1753541238008,0.03,187.48,187.44,85.45768654]
[1753541238225,0.03,187.48,187.46,16.78468397]
[1753541238409,0.03,187.48,187.47,37.24]
[1753541238620,0.03,187.48,187.47,42.13949852]
[1753541238820,0.69,187.48,187.47,42.13949852]
[1753541239026,0.69,187.48,187.46,4.89949852]
[1753541239210,0.69,187.48,187.47,37.24]
[1753541240230,0.69,187.48,187.45,4.89949852]
[1753541240231,5.58949852,187.48,187.45,5.33475593]
[1753541240531,4.89949852,187.46,187.45,5.33475593]
[1753541240710,5.55949852,187.46,187.45,5.33475593]
[1753541241235,0.66,187.46,187.45,5.33475593]
[1753541241432,5.55949852,187.46,187.45,5.33475593]
[1753541241736,5.55949852,187.46,187.44,5.33504054]
[1753541241922,0.66,187.45,187.44,5.33504054]
[1753541244034,5.55949852,187.45,187.43,42.55524128]
[1753541244241,0.67,187.44,187.43,42.55524128]
[1753541245236,0.67,187.47,187.43,61.47305277]
[1753541245442,0.67,187.46,187.43,61.47305277]
[1753541245740,0.67,187.46,187.43,60.79305277]
[1753541246145,0.67,187.46,187.43,61.47305277]
[1753541248145,0.67,187.46,187.43,60.79305277]
[1753541248338,0.67,187.45,187.43,55.89355425]
[1753541250047,0.67,187.44,187.43,55.89355425]
[1753541251148,0.67,187.46,187.43,55.89355425]
[1753541251325,0.67,187.45,187.43,55.89355425]
[1753541251525,4.92949852,187.48,187.43,55.89355425]
[1753541251728,0.67,187.47,187.43,55.89355425]
[1753541251927,0.67,187.46,187.43,55.89355425]
[1753541252135,0.67,187.46,187.43,56.57355425]
[1753541252344,0.03,187.48,187.43,56.57355425]
[1753541252519,0.67,187.47,187.43,56.57355425]
[1753541254241,0.03,187.48,187.43,56.57355425]
[1753541254545,0.67,187.46,187.43,55.89355425]
[1753541255728,0.67,187.45,187.43,55.89355425]
[1753541255930,0.67,187.44,187.43,42.55524128]
[1753541259234,0.67,187.45,187.43,42.55524128]
[1753541260026,5.46079168,187.48,187.43,42.55524128]
[1753541260229,0.67,187.47,187.43,43.23524128]
[1753541260426,0.56129316,187.48,187.43,43.23524128]
[1753541260649,0.67,187.46,187.43,43.23524128]
[1753541261756,0.67,187.46,187.43,42.55524128]
[1753541262155,5.46079168,187.48,187.43,42.55524128]
[1753541262457,0.67,187.45,187.43,42.55524128]
[1753541263552,0.56129316,187.48,187.43,42.55524128]
[1753541263753,0.67,187.47,187.43,42.55524128]
[1753541264137,0.67,187.47,187.43,43.23524128]
[1753541264337,5.46079168,187.48,187.43,43.23524128]
[1753541264535,4.89949852,187.44,187.39,5.33646405]
[1753541264753,1.20129316,187.43,187.39,5.33646405]
[1753541265036,5.56949852,187.42,187.39,42.65646405]
[1753541265247,0.67,187.41,187.39,42.65646405]
[1753541265449,4.89949852,187.42,187.39,42.65646405]
[1753541265643,5.56949852,187.42,187.39,42.65646405]
[1753541267959,0.67,187.42,187.39,43.33646405]
[1753541269454,5.56949852,187.43,187.39,43.33646405]
[1753541271959,4.89949852,187.43,187.4,0.68]
[1753541272159,3.62597136,187.48,187.42,4.89949852]
[1753541272160,0.56129316,187.48,187.42,4.89949852]
[1753541272356,0.56129316,187.48,187.4,0.68]
[1753541272357,0.03,187.48,187.43,42.19949852]
[1753541272547,0.03,187.48,187.44,0.68]
[1753541272750,0.03,187.48,187.45,37.3]
[1753541273142,0.03,187.48,187.45,37.98]
[1753541273544,0.7,187.48,187.46,5.33447135]
[1753541274466,6.08079168,187.47,187.43,37.3]
[1753541274663,5.54949852,187.46,187.43,37.3]
[1753541275166,0.65,187.45,187.43,37.3]
[1753541275552,0.65,187.45,187.44,5.33504054]
[1753541275756,5.54949852,187.46,187.44,5.33504054]
[1753541275949,5.46079168,187.48,187.44,5.99504054]
[1753541276157,0.56129316,187.48,187.45,0.66]
[1753541276558,0.03,187.48,187.45,0.66]
[1753541276873,0.03,187.48,187.44,5.33504054]
[1753541277065,0.03,187.48,187.46,0.66]
[1753541277750,0.03,187.48,187.45,0.66]
[1753541278266,0.03,187.48,187.46,5.33447135]
[1753541278452,0.03,187.48,187.46,47.51396987]
[1753541278656,0.03,187.48,187.47,0.66]
[1753541280673,0.03,187.48,187.47,5.9941868]
[1753541281278,0.03,187.48,187.47,5.3341868]
[1753541281859,6.11079168,187.48,187.42,26.66]
[1753541282058,5.54949852,187.47,187.43,37.28]
[1753541282368,0.65,187.46,187.43,37.28]
[1753541282767,0.65,187.46,187.43,42.61506823]
[1753541283273,0.03,187.48,187.43,42.61506823]
[1753541283274,5.57949852,187.48,187.43,43.27506823]
[1753541283463,6.08079168,187.47,187.43,43.27506823]
[1753541283665,5.43079168,187.47,187.43,43.27506823]
[1753541283853,0.65,187.46,187.43,43.27506823]
[1753541284054,0.65,187.45,187.43,42.61506823]
[1753541285073,0.65,187.45,187.42,5.33560986]
[1753541285279,5.54949852,187.45,187.42,43.27560986]
[1753541287456,4.89949852,187.45,187.42,43.27560986]
[1753541287656,5.54949852,187.46,187.42,43.27560986]
[1753541287957,5.54949852,187.46,187.43,0.06]
[1753541288479,4.89949852,187.46,187.43,0.06]
[1753541288660,0.65,187.45,187.43,0.06]
[1753541289679,4.89949852,187.46,187.43,0.06]
[1753541289988,6.08079168,187.46,187.43,0.06]
[1753541290162,0.65,187.45,187.43,0.06]
[1753541292086,5.54949852,187.46,187.43,0.06]
[1753541292468,5.54949852,187.46,187.44,5.33504054]
[1753541293997,0.65,187.46,187.44,5.33504054]
[1753541294203,5.54949852,187.46,187.44,5.33504054]
[1753541294374,4.89949852,187.46,187.43,5.39532518]
[1753541294693,5.54949852,187.45,187.43,5.39532518]
[1753541298596,4.89949852,187.46,187.43,6.05532518]
[1753541298895,4.89949852,187.46,187.44,0.66]
[1753541299071,0.65,187.47,187.44,0.66]
[1753541299272,4.89949852,187.46,187.44,0.66]
[1753541299876,0.03,187.48,187.45,0.66]
[1753541300075,0.03,187.48,187.46,0.66]
[1753541300705,4.92949852,187.48,187.46,0.66]
[1753541301500,4.92949852,187.48,187.46,5.33423072]
[1753541301715,0.03,187.48,187.46,5.33423072]
[1753541302902,0.03,187.48,187.47,0.66]
[1753541303502,0.03,187.48,187.47,5.9941868]
[1753541304074,5.23079168,187.52,187.47,5.9941868]
[1753541304274,5.23079168,187.52,187.48,0.67]
[1753541304474,5.23079168,187.52,187.48,6.00368958]
[1753541305100,5.26079168,187.52,187.48,5.33368958]
[1753541305302,5.26079168,187.52,187.48,6.00368958]
[1753541305476,0.68,187.51,187.48,5.33368958]
[1753541306101,0.68,187.5,187.48,5.33368958]
[1753541306705,4.58079168,187.52,187.46,5.33447135]
[1753541306912,5.57949852,187.51,187.46,5.33447135]
[1753541307090,0.68,187.5,187.46,6.00447135]
[1753541308588,0.68,187.5,187.47,0.67]
[1753541309510,0.68,187.5,187.48,5.33390228]
[1753541310091,5.57949852,187.51,187.48,5.33390228]
[1753541310281,8.92360803,187.54,187.49,0.67]
[1753541310282,0.68,187.52,187.49,0.67]
[1753541310486,0.68,187.52,187.48,5.33390228]
[1753541310487,4.89949852,187.53,187.5,0.67]
[1753541310683,5.57949852,187.53,187.5,0.67]
[1753541311087,4.89949852,187.53,187.5,0.67]
[1753541311689,4.89949852,187.54,187.51,5.3330489]
[1753541312002,5.57949852,187.54,187.51,5.3330489]
[1753541312507,4.89949852,187.52,187.47,6.00416486]
[1753541312687,4.89949852,187.5,187.47,5.33416486]
[1753541312886,0.68,187.49,187.47,5.33416486]
[1753541313082,26.0,187.53,187.46,5.33446855]
[1753541313282,0.68,187.48,187.46,5.33446855]
[1753541313895,4.89949852,187.49,187.46,5.33446855]
[1753541314091,5.57949852,187.49,187.46,5.33446855]
[1753541314295,5.57949852,187.48,187.45,42.57472472]
[1753541314500,4.89949852,187.46,187.43,5.39524279]
[1753541314691,4.89949852,187.44,187.43,5.39524279]
[1753541314886,4.89949852,187.45,187.43,5.39524279]
[1753541316916,4.89949852,187.44,187.43,0.06]
[1753541317118,5.57949852,187.44,187.43,0.06]
[1753541321047,4.89949852,187.45,187.43,0.06]
[1753541321410,5.57949852,187.45,187.43,0.06]
[1753541321806,0.68,187.44,187.43,0.06]
[1753541322203,5.57949852,187.44,187.43,0.06]
[1753541322938,4.89949852,187.44,187.43,0.06]
[1753541323819,5.57949852,187.44,187.43,0.06]
[1753541324023,0.68,187.44,187.43,0.06]
[1753541324336,5.57949852,187.44,187.43,0.06]
[1753541329236,4.89949852,187.44,187.43,0.06]
[1753541333319,0.68,187.45,187.43,0.06]
[1753541333519,4.89949852,187.44,187.43,0.06]
[1753541334243,4.89949852,187.44,187.43,0.78]
[1753541334447,4.89949852,187.45,187.43,0.78]
[1753541334950,4.89949852,187.45,187.43,6.11530267]
[1753541336029,26.0,187.47,187.43,6.11530267]
[1753541336030,4.89949852,187.47,187.44,0.72]
[1753541336222,4.89949852,187.47,187.45,0.72]
[1753541337519,4.89949852,187.47,187.44,6.05498052]
[1753541337839,5.55949852,187.47,187.44,6.05498052]
[1753541338044,4.89949852,187.46,187.44,5.33498052]
[1753541338249,5.55949852,187.46,187.43,5.39529999]
[1753541339942,0.66,187.45,187.43,0.06]
[1753541340146,5.55949852,187.46,187.43,0.06]
[1753541341050,5.55949852,187.46,187.43,5.39532518]
[1753541343246,5.55949852,187.46,187.43,0.78]
[1753541343820,4.89949852,187.46,187.43,0.78]
[1753541344748,5.55949852,187.46,187.43,0.78]
[1753541344948,5.55949852,187.46,187.43,6.11506513]
[1753541345442,0.66,187.46,187.43,6.11506513]
[1753541345626,5.55949852,187.46,187.43,6.11506513]
[1753541345822,5.55949852,187.46,187.43,5.39506513]
[1753541346018,0.66,187.45,187.43,5.39506513]
[1753541347723,4.89949852,187.45,187.43,0.06]
[1753541348644,4.89949852,187.45,187.43,5.39532518]
[1753541348849,5.55949852,187.45,187.43,5.39532518]
[1753541349960,5.55949852,187.46,187.43,0.06]
[1753541350141,5.55949852,187.46,187.43,0.78]
[1753541351031,5.55949852,187.46,187.43,0.06]
[1753541351237,5.55949852,187.46,187.43,5.39532518]
[1753541353038,5.55949852,187.46,187.43,0.06]
[1753541353239,0.66,187.45,187.43,0.06]
[1753541354882,4.89949852,187.46,187.43,0.78]
[1753541355161,5.55949852,187.46,187.43,0.78]
[1753541355941,5.55949852,187.46,187.43,6.11526888]
[1753541357570,4.89949852,187.46,187.43,6.11526888]
[1753541358165,4.89949852,187.46,187.44,0.72]
[1753541358464,4.89949852,187.46,187.43,0.06]
[1753541358661,5.55949852,187.46,187.43,0.78]
[1753541359064,0.66,187.45,187.43,0.06]
[1753541362050,0.66,187.46,187.43,0.78]
[1753541362359,3.79254493,187.48,187.43,0.78]
[1753541362760,5.55321997,187.48,187.43,0.78]
[1753541363246,3.61858573,187.49,187.45,4.89321997]
[1753541363450,0.69,187.49,187.45,5.61321997]
[1753541363659,0.69,187.49,187.46,0.72]
[1753541364479,0.69,187.49,187.46,6.05431186]
[1753541366893,0.03,187.49,187.46,6.05431186]
[1753541367080,0.03,187.49,187.46,5.33431186]
[1753541367386,0.03,187.49,187.47,5.99402234]
[1753541367982,0.03,187.49,187.48,0.66]
[1753541369288,0.03,187.49,187.48,5.99390228]
[1753541375393,0.03,187.49,187.48,10.88712225]
[1753541380271,0.03,187.49,187.48,5.99390228]
[1753541380486,0.03,187.49,187.48,5.33390228]
[1753541380799,0.03,187.49,187.48,5.99390228]
[1753541382306,0.03,187.49,187.48,10.88712225]
[1753541382796,0.03,187.49,187.48,9.12332331]
[1753541391103,0.03,187.49,187.48,8.46332331]
[1753541391422,0.03,187.49,187.48,45.64332331]
[1753541391892,0.03,187.49,187.48,46.30332331]
[1753541395707,0.03,187.49,187.48,42.51390228]
[1753541395908,0.03,187.49,187.48,45.64332331]
[1753541398098,0.03,187.49,187.48,45.70332331]
[1753541399407,0.03,187.49,187.48,46.40332331]
[1753541401124,0.03,187.49,187.48,43.27390228]
[1753541401426,0.03,187.49,187.48,46.40332331]
[1753541405022,0.03,187.49,187.48,45.70332331]
[1753541405204,0.03,187.49,187.48,46.40332331]
[1753541406911,0.03,187.49,187.48,43.27390228]
[1753541407113,0.03,187.49,187.48,46.40332331]
[1753541415933,0.03,187.49,187.48,133.80332331]
[1753541418422,0.03,187.49,187.48,133.10332331]
[1753541421136,0.69,187.49,187.48,87.46]
[1753541421439,0.69,187.49,187.48,124.62]
[1753541421641,0.69,187.49,187.48,37.22]
[1753541422134,0.69,187.49,187.48,0.06]
[1753541422135,3.81942103,187.49,187.48,0.06]
[1753541422341,36.18042103,187.49,187.48,0.06]
[1753541422538,61.89048035,187.49,187.44,0.06]
[1753541422743,1.5768,187.44,187.39,0.06]
[1753541422917,3.12942103,187.42,187.39,5.39629765]
[1753541423119,0.66,187.41,187.39,5.39629765]
[1753541424040,0.66,187.4,187.39,5.39629765]
[1753541424230,3.78942103,187.43,187.39,5.39629765]
[1753541424424,0.66,187.42,187.39,5.39629765]
[1753541425220,5.55574249,187.42,187.39,5.39629765]
[1753541425430,0.66,187.41,187.39,5.39629765]
[1753541426428,4.89574249,187.4,187.39,0.06]
[1753541426852,0.66,187.4,187.39,0.06]
[1753541427516,5.55574249,187.4,187.39,0.06]
[1753541428345,0.66,187.4,187.39,0.06]
[1753541429838,0.66,187.42,187.39,0.06]
[1753541430044,1.5768,187.44,187.39,5.61574249]
[1753541430453,0.66,187.43,187.39,5.61574249]
[1753541431153,0.66,187.45,187.4,0.66]
[1753541431338,0.66,187.45,187.4,5.55574249]
[1753541431536,4.89574249,187.46,187.42,4.89574249]
[1753541431537,0.66,187.46,187.42,4.89574249]
[1753541431852,0.66,187.46,187.42,5.55574249]
[1753541432847,0.66,187.46,187.43,5.33532518]
[1753541433150,0.66,187.46,187.43,10.23106767]
[1753541433944,0.66,187.46,187.43,5.33532518]
[1753541435056,6.41314249,187.48,187.43,5.33532518]
[1753541435261,0.66,187.45,187.43,5.33532518]
[1753541435461,6.41314249,187.48,187.43,5.33532518]
[1753541435653,0.66,187.44,187.43,5.33532518]
[1753541436059,0.66,187.44,187.42,5.33557533]
[1753541436754,0.66,187.44,187.4,5.33617929]
[1753541437151,5.55574249,187.44,187.4,5.33617929]
[1753541437354,0.66,187.43,187.4,5.33617929]
[1753541437542,0.66,187.42,187.4,5.33617929]
[1753541438150,5.55574249,187.44,187.39,5.39646405]
[1753541438349,0.66,187.43,187.39,6.05646405]
[1753541438563,4.89574249,187.44,187.39,6.05646405]
[1753541438751,0.66,187.43,187.39,6.05646405]
[1753541438947,4.89574249,187.44,187.39,6.05646405]
[1753541438948,0.66,187.42,187.39,6.05646405]
[1753541439764,0.66,187.42,187.39,5.39646405]
[1753541439967,0.66,187.42,187.39,6.05646405]
[1753541440261,5.55574249,187.44,187.39,6.05646405]
[1753541440456,0.66,187.43,187.39,6.05646405]
[1753541440855,4.89574249,187.45,187.4,0.66]
[1753541441054,0.66,187.44,187.4,0.66]
[1753541441368,0.03,187.43,187.4,0.66]